fUSD/lending_fUSD_20260205
["ID","MTS","AMOUNT","RATE_DAILY","PERIOD"]
[404544817,1770273043738,-558.95,0.00017216,2]
[404544818,1770273043747,-10109.39606906,0.00017254,2]
[404544819,1770273043757,-12145.31587262,0.00017255,2]
[404544820,1770273043767,-1000.0,0.0001726,2]
[404544821,1770273043778,-233.51889341,0.00017264,2]
[404544822,1770273043787,-3058.7089064,0.00017293,2]
[404544823,1770273043797,-168.0,0.00017314,2]
[404544824,1770273043808,-242.15909246,0.00017319,2]
[404544825,1770273043817,-200.0,0.00017354,2]
[404544826,1770273043827,-251.11897888,0.00017374,2]
[404544827,1770273043838,-260.4103811,0.00017429,2]
[404544828,1770273043847,-200.0,0.00017432,2]
[404544829,1770273043858,-168.0,0.00017482,2]
[404544830,1770273043868,-270.0455652,0.00017484,2]
[404544831,1770273043878,-558.95,0.0001749,2]
[404544832,1770273043888,-200.0,0.00017495,2]
[404544833,1770273043897,-1000.0,0.00017534,2]
[404544834,1770273043907,-200.0,0.00017534,2]
[404544835,1770273043917,-280.03725112,0.00017539,2]
[404544836,1770273043927,-168.0,0.0001755,2]
[404544837,1770273043936,-168.0,0.0001757,2]
[404544838,1770273043945,-200.0,0.00017582,2]
[404544839,1770273043955,-1000.0,0.00017584,2]
[404544840,1770273043964,-1000.0,0.00017584,2]
[404544841,1770273043973,-1000.0,0.00017584,2]
[404544842,1770273043982,-1000.0,0.00017584,2]
[404544843,1770273043991,-1000.0,0.00017588,2]
[404544844,1770273044001,-1000.0,0.00017588,2]
[404544845,1770273044011,-1000.0,0.00017588,2]
[404544846,1770273044020,-1000.0,0.00017588,2]
[404544847,1770273044029,-1000.0,0.00017588,2]
[404544848,1770273044040,-1000.0,0.00017588,2]
[404544849,1770273044049,-1000.0,0.00017588,2]
[404544851,1770273044060,-506.851,0.00017588,2]
[404544854,1770273044070,-290.39862941,0.00017594,2]
[404544856,1770273044081,-200.0,0.00017635,2]
[404544858,1770273044091,-1003.13131844,0.0001764,2]
[404544860,1770273044101,-1033.28337617,0.0001764,2]
[404544861,1770273044111,-1017.80505415,0.0001764,2]
[404544862,1770273044121,-1047.7800209,0.0001764,2]
[404544863,1770273044131,-181.08010149,0.00017647,2]
[404544864,1770273044141,-209.98794847,0.00017647,2]
[404544865,1770273044151,-793.0,0.00017648,2]
[404544866,1770273044160,-301.1433787,0.00017649,2]
[404544867,1770273044171,-793.0,0.00017673,2]
[404544868,1770273044181,-1000.0,0.00017726,2]
[404544869,1770273044191,-1000.0,0.00017727,2]
[404544870,1770273044200,-150.0,0.00017727,2]
[404544871,1770273044210,-168.0,0.00017728,2]
[404544872,1770273044220,-168.0,0.00017741,2]
[404544873,1770273044231,-558.95,0.00017764,2]
[404544874,1770273044240,-793.0,0.00017771,2]
[404544875,1770273044250,-247.44,0.00017776,2]
[404544876,1770273044260,-1000.0,0.0001778,2]
[404544877,1770273044270,-500.0,0.00017781,2]
[404544878,1770273044280,-152.05768541,0.00017785,2]
[404544879,1770273044290,-1000.0,0.00017788,2]
[404544880,1770273044300,-1000.0,0.00017789,2]
[404544881,1770273044313,-150.0,0.00017793,2]
[404544882,1770273044324,-1000.0,0.00017803,2]
[404544883,1770273044333,-150.0,0.00017808,2]
[404544884,1770273044343,-1000.0,0.00017808,2]
[404544885,1770273044354,-150.0,0.00017811,2]
[404544886,1770273044364,-1000.0,0.00017813,2]
[404544887,1770273044374,-1000.0,0.00017816,2]
[404544888,1770273044384,-1000.0,0.00017823,2]
[404544889,1770273044394,-1000.0,0.00017824,2]
[404544890,1770273044404,-1000.0,0.00017828,2]
[404544891,1770273044414,-1000.0,0.00017836,2]
[404544892,1770273044423,-500.0,0.00017856,2]
[404544893,1770273044433,-500.0,0.00017856,2]
[404544894,1770273044442,-500.0,0.00017856,2]
[404544895,1770273044452,-1000.0,0.0001787,2]
[404544896,1770273044462,-793.0,0.00017872,2]
[404544897,1770273044472,-150.0,0.0001789,2]
[404544898,1770273044481,-150.0,0.00017892,2]
[404544899,1770273044491,-26496.8487,0.000179,2]
[404544900,1770273044500,-4800.0,0.000179,2]
[404544901,1770273044510,-25000.0,0.000179,3]
[404544902,1770273044520,-160.0,0.000179,3]
[404544903,1770273044530,-6440.65816456,0.000179,3]
[404544904,1770273044540,-175.52213451,0.000179,2]
[404544905,1770273044550,-165.88513622,0.000179,2]
[404544906,1770273044561,-2235.31361979,0.000179,2]
[404544907,1770273044571,-10109.39606906,0.000179,2]
[404544908,1770273044581,-2180.21120746,0.000179,2]
[404544909,1770273044591,-14034.0,0.000179,2]
[404544910,1770273044600,-1000.0,0.00017905,2]
[404544911,1770273044611,-173.45848611,0.00017922,2]
[404544912,1770273044621,-793.0,0.00017922,2]
[404544913,1770273044631,-150.0,0.00017928,2]
[404544914,1770273044641,-1000.0,0.00017933,2]
[404544915,1770273044650,-1000.0,0.00017937,2]
[404544916,1770273044660,-150.0,0.00017938,2]
[404544917,1770273044670,-150.0,0.00017939,2]
[404544918,1770273044679,-1000.0,0.00017943,2]
[404544919,1770273044689,-1000.0,0.00017948,2]
[404544920,1770273044699,-150.0,0.00017957,2]
[404544921,1770273044709,-150.0,0.00017964,2]
[404544922,1770273044718,-207.76603134,0.00017969,2]
[404544923,1770273044727,-500.0,0.00017973,2]
[404544924,1770273044737,-500.0,0.00017973,2]
[404544925,1770273044747,-500.0,0.00017973,2]
[404544926,1770273044757,-500.0,0.00017973,2]
[404544927,1770273044768,-309.44398841,0.00017973,2]
[404544928,1770273044777,-500.0,0.00017973,2]
[404544929,1770273044788,-500.0,0.00017973,2]
[404544930,1770273044798,-500.0,0.00017973,2]
[404544931,1770273044809,-520.97702983,0.00017973,2]
[404544932,1770273044819,-500.0,0.00017973,2]
[404544933,1770273044828,-500.0,0.00017973,2]
[404544934,1770273044838,-500.0,0.00017973,2]
[404544935,1770273044848,-500.0,0.00017973,2]
[404544936,1770273044858,-500.0,0.00017973,2]
[404544937,1770273044868,-500.0,0.00017973,2]
[404544938,1770273044878,-500.0,0.00017973,2]
[404544939,1770273044888,-500.0,0.00017973,2]
[404544940,1770273044898,-500.0,0.00017973,2]
[404544941,1770273044907,-500.0,0.00017973,2]
[404544942,1770273044918,-500.0,0.00017973,2]
[404544943,1770273044928,-500.0,0.00017973,2]
[404544944,1770273044938,-500.0,0.00017973,2]
[404544945,1770273044948,-500.0,0.00017973,2]
[404544946,1770273044957,-500.0,0.00017973,2]
[404544947,1770273044967,-500.0,0.00017973,2]
[404544948,1770273044977,-561.5530591,0.00017973,2]
[404544949,1770273044987,-500.0,0.00017973,2]
[404544950,1770273044998,-500.0,0.00017973,2]
[404544951,1770273045007,-500.0,0.00017973,2]
[404544952,1770273045017,-500.0,0.00017973,2]
[404544953,1770273045027,-500.0,0.00017973,2]
[404544954,1770273045037,-500.0,0.00017973,2]
[404544955,1770273045047,-500.0,0.00017973,2]
[404544956,1770273045056,-500.0,0.00017973,2]
[404544957,1770273045066,-500.0,0.00017973,2]
[404544958,1770273045075,-500.0,0.00017973,2]
[404544959,1770273045086,-500.0,0.00017973,2]
[404544960,1770273045096,-502.08032841,0.00017973,2]
[404544961,1770273045105,-500.0,0.00017973,2]
[404544962,1770273045115,-500.0,0.00017973,2]
[404544963,1770273045124,-262.39107038,0.00017973,2]
[404544964,1770273045134,-500.0,0.00017973,2]
[404544965,1770273045144,-500.0,0.00017982,2]
[404544966,1770273045153,-1000.0,0.00017983,2]
[404544967,1770273045163,-33863.48319073,0.0001799,3]
[404544968,1770273045173,-359815.9629787,0.00017996,2]
[404544969,1770273045183,-8939.6973444,0.00017996,2]
[404544970,1770273045193,-11475.4210957,0.00017996,2]
[404544971,1770273045203,-56190.3651388,0.00017996,2]
[404544972,1770273045213,-2441.0372301,0.00017996,2]
[404544973,1770273045223,-150.0,0.00017997,2]
[404544974,1770273045232,-150.0,0.00017999,2]
[404544975,1770273045242,-252.01216033,0.00017999,2]
[404544976,1770273045251,-155.0,0.00017999,2]
[404544977,1770273045261,-300.0,0.00017999,2]
[404544978,1770273045271,-778.44145262,0.00017999,2]
[404544979,1770273045280,-300.0,0.00017999,2]
[404544980,1770273045290,-305.85808466,0.00017999,2]
[404544981,1770273045300,-300.0,0.00017999,2]
[404544982,1770273045311,-300.0,0.00017999,2]
[404544983,1770273045323,-666.0,0.00017999,2]
[404544984,1770273045333,-2509263.89889555,0.00018,2]
[404544985,1770273045362,-7294.02521592,0.00018,2]
[404544986,1770273045374,-1109.74693068,0.00018,2]
[404544987,1770273045387,-705.01316314,0.00018,2]
[404544988,1770273045398,-34542.72960063,0.00018,2]
[404544989,1770273045410,-2602.99277642,0.00018,2]
[404544990,1770273045491,-12145.31587262,0.000179,2]
[404544991,1770273045501,-20632.8924718,0.00018,2]
[404544995,1770273046363,-2112.79791197,0.00018,2]
[404545007,1770273046785,-2.215e-05,0.00018,2]
[404545074,1770274232266,-612.78854042,0.00011233,2]
[404545076,1770274232281,-678.63145958,0.00011233,2]
[404545079,1770274232292,-250.0,0.00011439,2]
[404545081,1770274232302,-1200.0,0.00011645,2]
[404545083,1770274232312,-908.44578447,0.00011646,2]
[404545088,1770274232362,-871.14161176,0.00011646,2]
[404545089,1770274232374,-143.08560377,0.00011646,2]
[404545090,1770274232384,-186.727,0.00011646,2]
[404545091,1770274232394,-1282.58180334,0.00011646,2]
[404545092,1770274232444,-497.1834465,0.00011646,2]
[404545093,1770274232455,-597.96547488,0.00011653,2]
[404545094,1770274232467,-477.49208952,0.00011653,2]
[404545095,1770274232480,-378.01657392,0.00011653,2]
[404545096,1770274232494,-1694.42969564,0.00011653,2]
[404545097,1770274232506,-8167.50261528,0.00011653,2]
[404545099,1770274232516,-300.0,0.00011683,2]
[404545101,1770274232526,-150.0,0.00011683,2]
[404545103,1770274232536,-500.0,0.00011683,2]
[404545105,1770274232546,-500.0,0.00011683,2]
[404545107,1770274232556,-500.0,0.00011683,2]
[404545109,1770274232566,-500.0,0.00011683,2]
[404545111,1770274232577,-306.98797087,0.00011683,2]
[404545113,1770274232587,-175.52213451,0.00011684,2]
[404545115,1770274232597,-165.88513622,0.00011684,2]
[404545117,1770274232608,-9900.64059699,0.00011684,2]
[404545120,1770274232618,-2266.53715917,0.00011684,2]
[404545123,1770274232634,-1159.94357071,0.00011684,2]
[404545233,1770274238365,-919.38,0.00011684,2]
[404545234,1770274238379,-1172.96774003,0.00011684,2]
[404545235,1770274238391,-873.39,0.00011684,2]
[404545236,1770274238403,-4413.27073477,0.00011684,2]
[404545237,1770274238416,-18359.33974786,0.00011684,2]
[404545238,1770274238547,-1316.2203478,0.00011684,2]
[404545240,1770274240655,-3469518.95069966,0.00011684,2]
[404545241,1770274240666,-738.0,0.00011753,2]
[404545242,1770274240676,-276.0926,0.00011784,2]
[404545243,1770274240686,-2500.0,0.00011784,2]
[404545244,1770274240696,-151.0,0.00011877,2]
[404545245,1770274240708,-151.0,0.00011877,2]
[404545246,1770274240718,-151.0,0.00011877,2]
[404545247,1770274240727,-151.0,0.00011877,2]
[404545248,1770274240737,-151.0,0.00011877,2]
[404545249,1770274240747,-151.0,0.00011877,2]
[404545250,1770274240757,-200.0,0.00011877,2]
[404545251,1770274240767,-151.0,0.00011877,2]
[404545252,1770274240776,-151.0,0.00011877,2]
[404545253,1770274240786,-151.0,0.00011877,2]
[404545254,1770274240797,-151.0,0.00011877,2]
[404545255,1770274240807,-151.0,0.00011877,2]
[404545256,1770274240816,-200.0,0.00011877,2]
[404545257,1770274240826,-500.0,0.00011877,2]
[404545258,1770274240835,-500.0,0.00011877,2]
[404545259,1770274240845,-500.0,0.00011877,2]
[404545260,1770274240855,-500.0,0.00011877,2]
[404545261,1770274240865,-500.0,0.00011877,2]
[404545262,1770274240875,-500.0,0.00011877,2]
[404545263,1770274240884,-500.0,0.00011877,2]
[404545264,1770274240894,-500.0,0.00011877,2]
[404545265,1770274240904,-500.0,0.00011877,2]
[404545266,1770274240914,-226.0059482,0.00011877,2]
[404545267,1770274240924,-499.99,0.00011977,2]
[404545268,1770274240934,-4999.99,0.00011977,2]
[404545269,1770274240944,-150.99,0.00011977,2]
[404545270,1770274240955,-9999.99,0.00011977,2]
[404545271,1770274240964,-299.99,0.00011977,2]
[404545272,1770274240974,-150.99,0.00011977,2]
[404545273,1770274240984,-9999.99,0.00011977,2]
[404545274,1770274240994,-6655.19,0.00011977,2]
[404545275,1770274241004,-9999.99,0.00011977,2]
[404545276,1770274241013,-5326.57,0.00011977,2]
[404545277,1770274241023,-999.99,0.00011977,2]
[404545278,1770274241032,-1610.11,0.00011977,2]
[404545279,1770274241042,-4022.9582,0.00011993,2]
[404545280,1770274241052,-1000.0,0.00011993,2]
[404545281,1770274241061,-500.0,0.00012173,3]
[404545282,1770274241071,-451.0,0.00012311,2]
[404545283,1770274241080,-9861.93231085,0.00012347,2]
[404545284,1770274241090,-250.0,0.00012356,2]
[404545285,1770274241100,-9900.64059695,0.00012375,2]
[404545286,1770274241110,-200.0,0.00012425,2]
[404545287,1770274241120,-200.0,0.00012425,2]
[404545288,1770274241130,-500.0,0.00012425,2]
[404545289,1770274241139,-643.0,0.00012538,2]
[404545290,1770274241149,-247.97,0.00012586,2]
[404545291,1770274241160,-1232.94,0.00012684,2]
[404545292,1770274241170,-269.92100004,0.00012696,2]
[404545293,1770274241180,-150.0,0.00012696,2]
[404545294,1770274241190,-678.0,0.00012739,2]
[404545295,1770274241200,-150.0,0.00012751,2]
[404545296,1770274241210,-255.0,0.00012758,2]
[404545297,1770274241220,-273.38131323,0.00012806,2]
[404545298,1770274241230,-250.0,0.00012811,2]
[404545299,1770274241240,-159.0,0.0001297,2]
[404545300,1770274241251,-233.22924952,0.00012973,2]
[404545301,1770274241261,-500.0,0.00012973,2]
[404545302,1770274241271,-9861.93231085,0.00013041,2]
[404545303,1770274241282,-9900.64059695,0.00013065,2]
[404545304,1770274241292,-247.97,0.00013285,2]
[404545305,1770274241302,-9333.59518975,0.00013316,2]
[404545306,1770274241312,-24631.50537764,0.00013316,2]
[404545307,1770274241322,-43452.89515177,0.00013316,2]
[404545308,1770274241331,-500.0,0.00013424,2]
[404545309,1770274241341,-500.0,0.00013479,2]
[404545310,1770274241351,-500.0,0.00013521,2]
[404545311,1770274241361,-185.53305553,0.00013534,2]
[404545312,1770274241371,-8633.52619887,0.000136,2]
[404545313,1770274241381,-159.0,0.000136,2]
[404545314,1770274241391,-500.0,0.00013698,2]
[404545315,1770274241401,-500.0,0.00013698,2]
[404545316,1770274241411,-500.0,0.00013698,2]
[404545317,1770274241421,-500.0,0.00013698,2]
[404545318,1770274241431,-500.0,0.00013698,2]
[404545319,1770274241441,-590.10761957,0.00013698,2]
[404545320,1770274241451,-500.0,0.00013698,2]
[404545322,1770274241461,-507.70655637,0.00013698,2]
[404545324,1770274241471,-500.0,0.00013698,2]
[404545326,1770274241481,-500.0,0.00013698,2]
[404545328,1770274241491,-288.02611632,0.00013698,2]
[404545330,1770274241501,-500.0,0.00013698,2]
[404545332,1770274241511,-500.0,0.00013698,2]
[404545334,1770274241520,-198.00308747,0.00013698,2]
[404545336,1770274241529,-500.0,0.00013698,2]
[404545338,1770274241539,-500.0,0.00013698,2]
[404545340,1770274241548,-500.0,0.00013698,2]
[404545342,1770274241558,-405.3888533,0.00013698,2]
[404545344,1770274241567,-500.0,0.00013698,2]
[404545346,1770274241576,-500.0,0.00013698,2]
[404545348,1770274241586,-447.07793737,0.00013698,2]
[404545350,1770274241596,-500.0,0.00013698,2]
[404545352,1770274241606,-500.0,0.00013698,2]
[404545355,1770274241616,-500.0,0.00013698,2]
[404545356,1770274241625,-500.0,0.00013698,2]
[404545359,1770274241638,-500.0,0.00013698,2]
[404545361,1770274241648,-500.0,0.00013698,2]
[404545363,1770274241658,-500.0,0.00013698,2]
[404545365,1770274241667,-418.4948437,0.00013698,2]
[404545367,1770274241678,-500.0,0.00013698,2]
[404545369,1770274241688,-500.0,0.00013698,2]
[404545371,1770274241698,-500.0,0.00013698,2]
[404545373,1770274241708,-500.0,0.00013698,2]
[404545375,1770274241717,-519.87500599,0.00013698,2]
[404545377,1770274241727,-533.55,0.00013698,2]
[404545378,1770274241736,-500.0,0.00013698,2]
[404545379,1770274241746,-500.0,0.00013698,2]
[404545380,1770274241755,-519.49,0.00013698,2]
[404545381,1770274241765,-457.99797698,0.00013698,2]
[404545382,1770274241775,-519.49,0.00013698,2]
[404545383,1770274241785,-519.49,0.00013698,2]
[404545384,1770274242046,-519.49,0.00013698,2]
[404545385,1770274242056,-519.49,0.00013698,2]
[404545386,1770274242066,-519.49,0.00013698,2]
[404545387,1770274242076,-519.49,0.00013698,2]
[404545388,1770274242085,-519.49,0.00013698,2]
[404545389,1770274242095,-519.49,0.00013698,2]
[404545390,1770274242105,-519.49,0.00013698,2]
[404545391,1770274242115,-519.49,0.00013698,2]
[404545392,1770274242124,-519.49,0.00013698,2]
[404545393,1770274242134,-519.49,0.00013698,2]
[404545394,1770274242144,-519.49,0.00013698,2]
[404545395,1770274242154,-519.49,0.00013698,2]
[404545396,1770274242163,-500.0,0.00013698,2]
[404545397,1770274242173,-500.0,0.00013698,2]
[404545398,1770274242183,-500.0,0.00013698,2]
[404545399,1770274242192,-500.0,0.00013698,2]
[404545400,1770274242202,-500.0,0.00013698,2]
[404545401,1770274242212,-500.0,0.00013698,2]
[404545402,1770274242221,-500.0,0.00013698,2]
[404545403,1770274242231,-500.0,0.00013698,2]
[404545404,1770274242241,-350.20210057,0.00013698,2]
[404545405,1770274242251,-500.0,0.00013698,2]
[404545406,1770274242261,-500.0,0.00013698,2]
[404545407,1770274242272,-500.0,0.00013698,2]
[404545408,1770274242282,-500.0,0.00013698,2]
[404545409,1770274242291,-500.0,0.00013698,2]
[404545410,1770274242301,-500.0,0.00013698,2]
[404545411,1770274242312,-500.0,0.00013698,2]
[404545412,1770274242322,-500.0,0.00013698,2]
[404545413,1770274242332,-500.0,0.00013698,2]
[404545414,1770274242342,-500.0,0.00013698,2]
[404545415,1770274242352,-500.0,0.00013698,2]
[404545416,1770274242362,-500.0,0.00013698,2]
[404545417,1770274242371,-500.0,0.00013698,2]
[404545418,1770274242381,-500.0,0.00013698,2]
[404545419,1770274242391,-500.0,0.00013698,2]
[404545420,1770274242401,-500.0,0.00013698,2]
[404545421,1770274242411,-500.0,0.00013698,2]
[404545422,1770274242421,-500.0,0.00013698,2]
[404545423,1770274242430,-160.87387984,0.00013698,2]
[404545424,1770274242440,-711.92,0.00013699,2]
[404545425,1770274242451,-9861.93231085,0.00013735,2]
[404545426,1770274242461,-9900.64059695,0.00013756,2]
[404545427,1770274242471,-230.94,0.00013836,2]
[404545428,1770274242480,-159.0,0.000139,2]
[404545429,1770274242489,-433.0,0.00013926,2]
[404545430,1770274242499,-533.55,0.00013972,2]
[404545431,1770274242508,-247.97,0.00013984,2]
[404545432,1770274242518,-533.55,0.00014246,2]
[404545433,1770274242527,-9861.93231085,0.00014429,2]
[404545434,1770274242537,-9900.64059695,0.00014447,2]
[404545435,1770274242549,-533.55,0.0001452,2]
[404545436,1770274242558,-519.49,0.00014599,2]
[404545437,1770274242568,-500.0,0.00014599,2]
[404545438,1770274242577,-500.0,0.000146,2]
[404545439,1770274242586,-614.51163375,0.000146,2]
[404545440,1770274242596,-500.0,0.000146,2]
[404545441,1770274242605,-500.0,0.000146,2]
[404545442,1770274242615,-500.0,0.000146,2]
[404545443,1770274242625,-500.0,0.000146,2]
[404545444,1770274242638,-502.1700093,0.000146,2]
[404545445,1770274242647,-500.0,0.000146,2]
[404545446,1770274242656,-151.0,0.00014634,2]
[404545447,1770274242666,-151.0,0.00014634,2]
[404545448,1770274242676,-247.97,0.00014684,2]
[404545449,1770274242687,-152.0,0.00014714,3]
[404545450,1770274242698,-1453.4741383,0.00014777,2]
[404545451,1770274242708,-533.55,0.00014794,2]
[404545452,1770274242719,-1779.76524984,0.00014811,2]
[404545453,1770274242729,-159.66,0.000149,2]
[404545454,1770274242739,-250.0,0.00015,2]
[404545455,1770274242749,-152.62,0.00015,2]
[404545456,1770274242758,-533.55,0.00015068,2]
[404545457,1770274242768,-450.32,0.00015068,2]
[404545458,1770274242779,-9861.93231085,0.00015124,2]
[404545459,1770274242788,-9900.64059695,0.00015137,2]
[404545460,1770274242800,-1000.0,0.00015148,2]
[404545461,1770274242810,-500.0,0.00015148,2]
[404545462,1770274242819,-1000.0,0.00015148,2]
[404545463,1770274242828,-500.0,0.00015148,2]
[404545464,1770274242838,-347.37162909,0.00015148,2]
[404545465,1770274242847,-166.66,0.00015243,2]
[404545466,1770274242856,-533.55,0.00015342,2]
[404545467,1770274242866,-247.97,0.00015383,2]
[404545468,1770274242876,-166.66,0.00015564,2]
[404545469,1770274242886,-533.55,0.00015616,2]
[404545470,1770274242896,-1500.0,0.00015696,2]
[404545471,1770274242906,-1504.24108191,0.00015696,2]
[404545472,1770274242916,-500.0,0.00015793,2]
[404545473,1770274242925,-9861.93231085,0.00015818,2]
[404545474,1770274242935,-9900.64059695,0.00015828,2]
[404545475,1770274242944,-166.66,0.00015885,2]
[404545476,1770274242954,-533.55,0.0001589,2]
[404545477,1770274242964,-152.0,0.00015955,4]
[404545478,1770274242973,-152.05768541,0.0001598,2]
[404545479,1770274242983,-150.27588128,0.00016,2]
[404545480,1770274242993,-247.97,0.00016082,2]
[404545481,1770274243002,-31183.39,0.00016101,2]
[404545482,1770274243012,-533.55,0.00016164,2]
[404545483,1770274243022,-166.66,0.00016206,2]
[404545484,1770274243031,-3491.028,0.00016243,2]
[404545485,1770274243040,-1335.0,0.00016243,2]
[404545486,1770274243052,-1411.0,0.00016243,2]
[404545487,1770274243062,-616.445,0.00016243,2]
[404545488,1770274243071,-150.0,0.00016243,2]
[404545489,1770274243081,-1271.0,0.00016243,2]
[404545490,1770274243091,-151.0,0.00016243,2]
[404545491,1770274243100,-200.0,0.00016243,2]
[404545492,1770274243110,-267.0,0.00016243,2]
[404545493,1770274243119,-568.607,0.00016243,2]
[404545494,1770274243129,-6581.0,0.00016243,2]
[404545495,1770274243138,-3254.0,0.00016243,2]
[404545496,1770274243147,-1291.24412758,0.00016244,2]
[404545497,1770274243156,-65002.93240009,0.00016316,2]
[404545498,1770274243165,-87951.2733,0.00016316,2]
[404545499,1770274243174,-500.0,0.00016356,2]
[404545500,1770274243183,-519.49,0.00016413,2]
[404545501,1770274243193,-533.55,0.00016438,2]
[404545502,1770274243202,-450.32,0.00016438,2]
[404545503,1770274243212,-9900.64059695,0.00016519,2]
[404545504,1770274243222,-166.66,0.00016527,2]
[404545505,1770274243232,-351.5182,0.00016564,2]
[404545506,1770274243242,-152.05768541,0.00016595,2]
[404545507,1770274243252,-533.55,0.00016712,2]
[404545508,1770274243262,-247.97,0.00016781,2]
[404545509,1770274243273,-773.71,0.00016807,2]
[404545510,1770274243283,-166.66,0.00016847,2]
[404545511,1770274243294,-533.55,0.00016986,2]
[404545512,1770274243304,-300.0,0.00017,2]
[404545513,1770274243314,-2000.0,0.00017099,2]
[404545514,1770274243324,-2000.0,0.00017099,2]
[404545515,1770274243333,-2000.0,0.00017099,2]
[404545516,1770274243343,-2000.0,0.00017099,2]
[404545517,1770274243352,-216.07161542,0.00017099,2]
[404545518,1770274243363,-1449.10348087,0.00017099,2]
[404545519,1770274243373,-209.40437684,0.00017099,2]
[404545520,1770274243383,-174.61919141,0.00017099,2]
[404545521,1770274243393,-743.50770149,0.00017099,2]
[404545522,1770274243403,-578.20924308,0.00017099,2]
[404545523,1770274243412,-2000.0,0.00017099,2]
[404545524,1770274243422,-2000.0,0.00017099,2]
[404545525,1770274243431,-2000.0,0.00017099,2]
[404545526,1770274243440,-2000.0,0.00017099,2]
[404545527,1770274243450,-2000.0,0.00017099,2]
[404545528,1770274243459,-2000.0,0.00017099,2]
[404545529,1770274243469,-2000.0,0.00017099,2]
[404545530,1770274243478,-1508.30623238,0.00017099,2]
[404545531,1770274243488,-322.6107,0.00017099,2]
[404545532,1770274243498,-1506.0,0.000171,2]
[404545533,1770274243507,-217.15233878,0.00017154,2]
[404545534,1770274243517,-152.0,0.00017196,5]
[404545535,1770274243526,-225.18697532,0.00017209,2]
[404545536,1770274243536,-9900.64059695,0.00017209,2]
[404545537,1770274243546,-152.05768541,0.0001721,2]
[404545538,1770274243556,-533.55,0.0001726,2]
[404545539,1770274243566,-1000.0,0.0001726,2]
[404545540,1770274243575,-233.51889341,0.00017264,2]
[404545541,1770274243585,-230.94,0.00017318,2]
[404545542,1770274243594,-242.15909246,0.00017319,2]
[404545543,1770274243603,-748.0,0.00017342,2]
[404545544,1770274243613,-251.11897888,0.00017374,2]
[404545545,1770274243622,-260.4103811,0.00017429,2]
[404545546,1770274243637,-247.97,0.00017481,2]
[404545547,1770274243646,-270.0455652,0.00017484,2]
[404545548,1770274243655,-533.55,0.00017534,2]
[404545549,1770274243664,-1000.0,0.00017534,2]
[404545550,1770274243674,-280.03725112,0.00017539,2]
[404545551,1770274243684,-500.0,0.00017589,2]
[404545552,1770274243693,-290.39862941,0.00017594,2]
[404545553,1770274243704,-152.93,0.00017645,2]
[404545554,1770274243714,-181.08010149,0.00017647,2]
[404545555,1770274243723,-209.98794847,0.00017647,2]
[404545556,1770274243732,-301.1433787,0.00017649,2]
[404545557,1770274243742,-200.0,0.00017707,2]
[404545558,1770274243751,-1000.0,0.00017732,2]
[404545559,1770274243761,-305.84785682,0.0001774,2]
[404545560,1770274243770,-1000.0,0.00017745,2]
[404545561,1770274243780,-1000.0,0.00017764,2]
[404545562,1770274243790,-1000.0,0.00017775,2]
[404545563,1770274243800,-150.0,0.00017784,2]
[404545564,1770274243809,-1000.0,0.00017786,2]